bitfinex/quotes_ETHUSD_20240709
["timestamp","ask_amount","ask_price","bid_price","bid_amount"]
[1720547596329,0.76221601,3057.3,3057.2,11.51462448]
[1720547596518,0.08539051,3057.3,3057.2,13.79292448]
[1720547596721,0.67686999,3057.5,3057.4,3.27075]
[1720547596940,0.76225046,3057.5,3057.4,4.35775]
[1720547597363,0.76225046,3057.5,3057.4,10.89925]
[1720547597522,0.76225046,3057.5,3057.4,12.68203025]
[1720547598324,0.67686999,3057.6,3057.5,6.54128]
[1720547598664,0.08537792,3057.6,3057.5,7.62828]
[1720547598820,1.52770926,3057.7,3057.5,5.62581003]
[1720547599154,0.85083927,3057.7,3057.6,6.54106]
[1720547599823,8.13686999,3057.8,3057.7,3.27043]
[1720547600021,13.55371219,3058.1,3057.9,2.2868]
[1720547600022,0.67686999,3058.1,3057.9,2.2868]
[1720547600221,0.67686999,3058.4,3058.3,8.82638]
[1720547600522,0.85083927,3058.5,3058.4,6.53936]
[1720547603378,1.52707744,3058.7,3058.6,6.53892]
[1720547603542,0.85083927,3058.7,3058.6,6.53892]
[1720547606987,0.67623817,3059.0,3058.7,2.2884]
[1720547607167,0.85083927,3059.0,3058.9,3.26914]
[1720547607385,0.85083927,3059.0,3058.9,6.53828]
[1720547607547,0.85083927,3059.0,3058.9,11.277712]
[1720547608081,0.45200835,3059.0,3058.9,11.277712]
[1720547608302,0.67461533,3060.0,3059.4,2.4922]
[1720547608456,0.45200835,3060.0,3059.9,6.53616]
[1720547610449,0.45200835,3060.2,3060.1,6.53572]
[1720547612306,0.45200835,3060.4,3060.3,9.80295]
[1720547613855,7.46,3060.9,3060.3,9.80295]
[1720547613856,7.46,3060.9,3060.8,9.80133]
[1720547614056,0.45200835,3061.1,3061.0,6.5338]
[1720547614853,0.45200835,3061.1,3061.0,9.8007]
[1720547615250,0.45200835,3061.3,3061.2,6.53338]
[1720547615790,0.45200835,3061.3,3061.2,9.80007]
[1720547616150,3.0,3061.3,3060.6,3.26733]
[1720547616564,0.45200835,3060.7,3060.6,3.26733]
[1720547619107,0.45200835,3060.7,3060.6,6.53466]
[1720547619405,0.45200835,3060.7,3060.6,9.80199]
[1720547619693,0.45200835,3060.7,3060.6,6.53466]
[1720547623492,0.45200835,3060.9,3060.8,6.53422]
[1720547624205,0.45200835,3060.7,3060.1,2.607]
[1720547624502,0.45200835,3060.7,3058.6,6.415]
[1720547624503,0.45200835,3060.4,3059.5,3.26845]
[1720547624655,0.45200835,3059.4,3059.3,3.26862]
[1720547624857,3.47253,3060.2,3058.7,0.6415]
[1720547624858,0.45200835,3058.8,3058.7,0.6415]
[1720547625060,0.45200835,3058.8,3058.6,2.4151]
[1720547625286,0.45200835,3058.8,3058.7,6.53872]
[1720547626059,0.45200835,3059.6,3058.6,2.4151]
[1720547626257,0.45200835,3059.6,3059.4,3.26853]
[1720547626488,0.45200835,3059.3,3059.2,3.26876]
[1720547627791,0.45200835,3059.3,3059.2,6.53758]
[1720547628017,3.66705,3060.5,3059.0,3.26901]
[1720547628018,0.45200835,3059.6,3059.5,3.2685]
[1720547628994,0.45200835,3059.4,3059.3,3.2687]
[1720547629565,0.45200835,3059.1,3059.0,3.26894]
[1720547629804,0.45200835,3059.1,3059.0,6.53789]
[1720547631174,0.45200835,3059.1,3058.9,3.26911]
[1720547631175,7.91200835,3059.6,3059.5,6.537]
[1720547632108,7.91200835,3059.6,3059.5,3.2685]
[1720547634713,7.91200835,3059.6,3059.4,3.26859]
[1720547635563,7.91200835,3059.6,3059.4,3.26855]
[1720547636395,7.91200835,3059.6,3059.5,3.2685]
[1720547636965,0.45200835,3059.6,3059.5,3.2685]
[1720547642472,0.45200835,3059.6,3059.4,3.26855]
[1720547642822,0.45200835,3059.6,3059.4,3.26853]
[1720547643312,7.46,3060.1,3059.8,3.26818]
[1720547643313,0.45200835,3059.9,3059.8,3.26818]
[1720547643471,0.45200835,3059.9,3058.9,3.26909]
[1720547643472,0.45200835,3059.7,3059.6,3.26833]
[1720547644214,0.45200835,3059.7,3059.5,3.2685]
[1720547644215,0.45200835,3059.7,3059.5,3.26845]
[1720547644397,0.45200835,3059.7,3059.6,3.2684]
[1720547646413,0.45200835,3059.7,3059.6,6.5368]
[1720547648535,0.45200835,3059.9,3059.8,6.53636]
[1720547649628,8.13008936,3060.1,3059.8,6.53636]
[1720547649629,8.13008936,3060.1,3060.0,6.53594]
[1720547649828,7.91200835,3060.1,3060.0,6.53594]
[1720547653861,7.99732418,3060.1,3060.0,6.53594]
[1720547654012,9.80426651,3060.1,3060.0,6.53594]
[1720547654441,9.35225816,3060.1,3060.0,6.53594]
[1720547654643,7.46,3060.1,3060.0,6.53594]
[1720547654874,0.67490623,3060.2,3060.1,6.53572]
[1720547655031,1.21728752,3060.2,3060.1,6.53572]
[1720547655362,1.8921976,3060.2,3060.1,6.53572]
[1720547655821,0.76022044,3060.2,3060.1,6.53572]
[1720547656160,1.89240303,3060.2,3060.1,6.53572]
[1720547656518,1.89234769,3060.2,3060.1,6.53572]
[1720547656719,1.21730992,3060.2,3060.1,6.53572]
[1720547657164,1.89234385,3060.2,3060.1,6.53572]
[1720547657452,1.21730992,3060.2,3060.1,6.53572]
[1720547657638,1.21730992,3060.2,3060.1,3.26786]
[1720547657818,2.22966927,3060.2,3060.1,3.26786]
[1720547658411,1.21730992,3060.2,3060.1,3.26786]
[1720547659128,1.21735732,3060.2,3060.1,3.26786]
[1720547659339,2.22971667,3060.2,3060.1,3.26786]
[1720547659513,0.08531739,3060.2,3060.0,3.26797]
[1720547659717,0.67522275,3060.1,3060.0,3.26797]
[1720547659960,1.80726054,3060.1,3060.0,3.26797]
[1720547660113,1.89257793,3060.1,3060.0,3.26797]
[1720547660319,1.89258685,3060.1,3060.0,3.26797]
[1720547660630,0.45200835,3059.6,3059.5,6.53694]
[1720547662250,0.45200835,3059.6,3059.5,3.26844]
[1720547662623,1.21277605,3059.6,3059.5,3.26844]
[1720547662953,0.53733652,3059.6,3059.5,3.26844]
[1720547663957,2.68274109,3059.6,3059.4,3.26859]
[1720547664252,0.76121966,3059.5,3059.4,12.09661]
[1720547664453,1.01315929,3059.6,3059.5,6.537]
[1720547664454,0.67589149,3059.6,3059.5,6.537]
[1720547664758,1.12789984,3059.7,3059.6,3.2684]
[1720547665055,1.55049364,3059.7,3059.6,3.2684]
[1720547665349,1.55049364,3059.7,3059.6,6.5368]
[1720547665854,1.55049364,3059.7,3059.6,3.2684]
[1720547665855,1.55049593,3059.7,3059.6,3.2684]
[1720547666052,2.04487538,3059.7,3059.6,3.2684]
[1720547666954,3.39468785,3059.7,3059.6,3.2684]
[1720547667119,4.73596186,3059.7,3059.6,3.2684]
[1720547667344,4.82128999,3059.7,3059.6,3.2684]
[1720547667549,0.45200835,3059.5,3059.4,3.26861]
[1720547667961,3.39500344,3059.5,3059.4,3.26861]
[1720547668350,2.04519097,3059.5,3059.4,3.26861]
[1720547668551,3.39835823,3059.5,3059.4,3.26861]
[1720547668857,3.39835823,3059.5,3058.9,3.26907]
[1720547668858,0.45200835,3059.2,3058.9,3.26907]
[1720547669172,1.10013008,3059.1,3058.9,3.26907]
[1720547669491,1.46679785,3059.0,3058.9,3.26907]
[1720547669780,0.91319619,3059.0,3058.9,3.26907]
[1720547670490,2.26665608,3059.0,3058.9,3.26907]
[1720547671568,2.66250418,3059.0,3058.9,3.26907]
[1720547671770,1.30904429,3059.0,3058.9,3.26907]
[1720547671986,0.84785645,3059.0,3058.9,3.26907]
[1720547672289,0.45200835,3058.8,3058.7,6.53864]
[1720547672488,1.46711973,3058.8,3058.7,6.53864]
[1720547672664,1.46711973,3058.8,3058.7,3.26929]
[1720547672665,1.55246816,3058.8,3058.7,3.26929]
[1720547672993,2.26672952,3058.8,3058.7,3.26929]
[1720547673167,0.91324768,3058.8,3058.7,3.26929]
[1720547673362,0.91317918,3058.8,3058.7,3.26929]
[1720547674176,1.46675111,3058.8,3058.7,3.26929]
[1720547674381,1.55209954,3058.8,3058.7,3.26929]
[1720547675653,1.55210176,3058.8,3058.7,3.26929]
[1720547678902,1.46675111,3058.8,3058.7,3.26929]
[1720547679198,1.55187101,3058.8,3058.7,3.26929]
[1720547679403,1.55173262,3058.8,3058.7,3.26929]
[1720547680275,0.53735933,3058.8,3058.7,3.26929]
[1720547681679,0.53735933,3058.8,3058.7,3.26936]
[1720547682175,0.45200835,3058.8,3058.7,3.26936]
[1720547682499,1.12795069,3058.8,3058.7,3.26936]
[1720547682683,1.2133014,3058.8,3058.7,3.26936]
[1720547685684,1.21330171,3058.8,3058.7,3.26936]
[1720547687193,1.21330171,3058.8,3058.7,6.53872]
[1720547689182,1.21330186,3058.8,3058.7,6.53872]
[1720547689505,1.21330187,3058.8,3058.7,6.53872]
[1720547692006,0.45200835,3059.0,3058.7,4.188272]
[1720547692212,0.45200835,3059.0,3058.9,1.087]
[1720547692637,0.45200835,3059.0,3058.7,3.101272]
[1720547692934,0.45200835,3059.0,3058.9,9.80742]
[1720547694202,0.45200835,3059.0,3058.9,6.53828]
[1720547696720,0.53735348,3059.0,3058.9,3.26914]
[1720547696921,1.21329582,3059.0,3058.9,3.26914]
[1720547697238,2.34571675,3059.0,3058.9,3.26914]
[1720547699055,1.21329582,3059.0,3058.9,3.26914]
[1720547699238,2.34569646,3059.0,3058.9,3.26914]
[1720547699441,1.21329611,3059.0,3058.9,3.26914]
[1720547699640,2.34570572,3059.0,3058.9,3.26914]
[1720547699843,2.34570572,3059.0,3058.9,6.53828]
[1720547700158,1.66976581,3059.0,3058.9,3.26914]
[1720547700450,2.6841391,3059.0,3058.9,3.26914]
[1720547700750,2.34605857,3059.0,3058.9,3.26914]
[1720547700955,2.34606038,3059.0,3058.9,3.26914]
[1720547701251,2.68414091,3059.0,3058.9,3.26914]
[1720547701655,1.55172989,3059.0,3058.9,3.26914]
[1720547701825,2.68417709,3059.0,3058.9,3.26914]
[1720547702778,1.967,3058.8,3057.1,2.3486]
[1720547702951,0.45200835,3057.4,3057.1,2.3486]
[1720547703125,0.45200835,3057.4,3057.3,6.5417]
[1720547703957,0.67622134,3057.7,3057.5,3.27064]
[1720547704159,1.12822969,3057.7,3057.6,3.27053]
[1720547704347,1.2136105,3057.7,3057.6,3.27053]
[1720547704548,0.67622134,3057.9,3057.6,3.142717]
[1720547704858,1.35244268,3058.1,3057.9,3.27021]
[1720547704859,0.67622134,3058.1,3057.9,3.27021]
[1720547705066,1.35244268,3058.3,3057.9,3.27021]
[1720547705067,0.67622134,3058.3,3058.2,6.53978]
[1720547705241,0.76158638,3058.3,3058.2,6.53978]
[1720547705427,0.45200835,3058.4,3058.3,3.26979]
[1720547705428,1.12822969,3058.4,3058.3,3.26979]
[1720547705628,1.21359158,3058.4,3058.3,3.26979]
[1720547706141,0.53737024,3058.4,3058.3,3.26979]
[1720547706373,0.45200835,3058.1,3058.0,2.4886]
[1720547706593,0.53737668,3058.1,3058.0,5.75871]
[1720547707087,0.45200835,3058.1,3058.0,5.75871]
[1720547707285,0.53737545,3058.1,3058.0,5.75871]
[1720547707464,0.45200835,3058.1,3058.0,9.931716]
[1720547709740,0.45200835,3058.1,3058.0,9.02882]
[1720547709984,0.45200835,3058.1,3058.0,5.75871]
[1720547709985,1.21338736,3058.1,3058.0,5.75871]
[1720547710741,0.53737468,3058.1,3058.0,9.02882]
[1720547710937,0.45200835,3058.1,3058.0,9.931702]
[1720547712379,1.21383501,3058.1,3058.0,9.931702]
[1720547712611,1.21383501,3058.1,3058.0,5.75871]
[1720547712774,0.45200835,3057.8,3057.7,6.54078]
[1720547713292,1.12854328,3057.8,3057.5,2.3054]
[1720547713460,1.12854328,3057.8,3057.5,5.57604]
[1720547713461,1.12850033,3057.6,3057.5,5.57604]
[1720547713663,1.21387538,3057.6,3057.5,5.57604]
[1720547714363,1.21387538,3057.6,3057.4,3.27072]
[1720547714563,0.45200835,3057.3,3057.2,3.2709]
[1720547714781,0.67649198,3057.4,3057.3,3.27085]
[1720547714980,0.76188169,3057.4,3057.3,3.27085]
[1720547715383,0.08538971,3057.4,3057.3,3.27085]
[1720547715896,0.67649198,3057.5,3057.3,3.27085]
[1720547716293,0.67649198,3057.5,3057.4,3.27075]
[1720547716489,0.76188039,3057.5,3057.4,3.27075]
[1720547716660,0.08538766,3057.5,3057.4,3.27075]
[1720547716992,1.12850033,3057.6,3057.4,3.27075]
[1720547717294,0.08538769,3057.5,3057.4,3.27075]
[1720547717589,1.12850033,3057.6,3057.4,3.27075]
[1720547717894,0.08538873,3057.5,3057.4,3.27075]
[1720547718091,1.12761327,3057.6,3057.4,3.27075]
[1720547720189,0.45200835,3057.2,3057.1,5.6376]
[1720547720496,0.45200835,3057.2,3057.0,3.27118]
[1720547721294,0.45200835,3057.3,3057.2,3.27092]
[1720547721661,0.45200835,3057.3,3057.2,6.54188]
[1720547721862,0.45200835,3057.3,3057.2,3.27092]
[1720547723073,0.45200835,3057.3,3057.1,3.27107]
[1720547723587,0.45200835,3057.0,3056.9,8.92146]
[1720547723897,0.45200835,3057.5,3057.4,3.27075]
[1720547728174,0.45200835,3057.5,3057.4,6.5415]
[1720547728788,0.45200835,3057.5,3057.4,3.27075]
[1720547729594,0.45200835,3057.5,3057.4,6.5415]
[1720547730614,0.45200835,3057.5,3057.4,3.27075]
[1720547733264,0.45200835,3057.0,3056.9,3.271146]
[1720547733470,0.45200835,3057.0,3056.9,10.00856]
[1720547737524,0.45200835,3057.0,3056.9,13.27984]
[1720547739136,7.46,3057.5,3057.4,3.27075]
[1720547739311,7.91200835,3057.5,3057.4,4.35775]
[1720547739502,7.91200835,3057.5,3057.4,7.6285]
[1720547741246,0.45200835,3057.5,3057.4,7.6285]
[1720547742434,1.58497336,3057.5,3057.4,7.6285]
[1720547744023,0.45200835,3057.5,3057.4,7.6285]
[1720547744225,0.67461798,3057.6,3057.5,6.54128]
[1720547744453,1.12662633,3057.7,3057.6,6.54106]
[1720547744656,2.2604439,3057.7,3057.6,7.62806]
[1720547745150,1.58494122,3057.7,3057.6,7.62806]
[1720547747462,1.58493332,3057.7,3057.6,7.62806]
[1720547748056,2.59880985,3057.7,3057.6,7.62806]
[1720547748437,1.95585177,3057.7,3057.6,7.62806]
[1720547749757,4.73518484,3057.7,3057.6,7.62806]
[1720547750757,3.60225813,3057.7,3057.6,7.62806]
[1720547750939,4.73519142,3057.7,3057.6,7.62806]
[1720547753475,3.38335604,3057.7,3057.6,7.62806]
[1720547753645,5.07501941,3057.7,3057.6,7.62806]
[1720547753969,3.38335604,3057.7,3057.6,7.62806]
[1720547754177,0.8229268,3057.7,3057.6,7.62806]
[1720547754472,2.25043727,3057.7,3057.6,7.62806]
[1720547754669,5.07654826,3057.7,3057.6,7.62806]
[1720547755240,5.07668509,3057.7,3057.6,7.62806]
[1720547755646,3.38341225,3057.7,3057.6,7.62806]
[1720547756144,5.07703648,3057.7,3057.6,7.62806]
[1720547756471,3.38341225,3057.7,3057.6,7.62806]
[1720547757582,3.38337781,3057.7,3057.6,7.62806]
[1720547758361,7.93258355,3057.7,3057.6,4.35753]
[1720547758572,4.07632452,3057.7,3057.6,4.35753]
[1720547758751,0.45200835,3057.2,3057.0,2.3116]
[1720547758952,1.01722768,3057.1,3057.0,8.85396]
[1720547759263,3.14914729,3057.1,3057.0,9.94096]
[1720547760388,3.60115564,3057.1,3057.0,9.94096]
[1720547760555,2.1735702,3057.1,3057.0,9.94096]
[1720547760754,3.60115594,3057.1,3057.0,9.94096]
[1720547761167,2.2449143,3057.1,3057.0,9.94096]
[1720547762175,2.44465506,3057.1,3057.0,14.533373]
[1720547762385,1.01700738,3057.2,3057.1,12.21921]
[1720547762584,1.01700738,3057.2,3057.1,14.0090723]
[1720547763862,0.45200835,3057.5,3057.4,3.27075]
[1720547764190,1.95013012,3057.5,3057.4,3.27075]
[1720547764362,0.81706127,3057.5,3057.4,3.27075]
[1720547764687,1.95010283,3057.5,3057.4,3.27075]
[1720547765187,1.95010283,3057.5,3057.4,6.5415]
[1720547765357,3.64368921,3057.5,3057.4,6.5415]
[1720547765557,1.95010283,3057.5,3057.4,6.5415]
[1720547766669,1.95004259,3057.5,3057.4,7.30435]
[1720547766875,3.64358651,3057.5,3057.4,7.30435]
[1720547767175,2.51060519,3057.5,3057.4,7.30435]
[1720547768319,1.94999577,3057.5,3057.4,6.5415]
[1720547768527,1.94999577,3057.5,3057.4,3.27075]
[1720547769532,1.49798742,3057.5,3057.3,4.35778]
[1720547769813,1.1329345,3057.4,3057.3,3.27078]
[1720547770029,2.48369904,3057.5,3057.4,3.27075]
[1720547770206,2.64172443,3057.5,3057.4,3.27075]
[1720547770388,1.94978902,3057.5,3057.4,3.27075]
[1720547770720,2.64172175,3057.5,3057.4,3.27075]
[1720547771215,1.94978902,3057.5,3057.4,3.27075]
[1720547772501,1.94978902,3057.5,3057.4,6.5415]
[1720547773468,1.9497117,3057.5,3057.4,6.5415]
[1720547773960,1.94971043,3057.5,3057.4,6.5415]
[1720547774154,1.94971043,3057.5,3057.4,7.870394]
[1720547774357,3.19100949,3057.5,3057.4,7.870394]
[1720547774563,1.3546985,3057.6,3057.5,9.81192]
[1720547774714,1.3546985,3057.6,3057.5,15.1412264]
[1720547774715,1.01612979,3057.6,3057.5,15.1412264]
[1720547774919,1.01612979,3057.7,3057.6,9.81159]
[1720547775172,0.67745611,3057.7,3057.6,13.08212]
[1720547775468,0.67720443,3057.8,3057.7,12.26479]
[1720547775673,8.47612979,3058.0,3057.8,9.81096]
[1720547775674,0.67720443,3057.9,3057.8,9.81096]
[1720547775814,0.67720443,3057.9,3057.8,12.64377876]
[1720547777052,7.46,3058.0,3057.9,9.81063]
[1720547777228,1.01612979,3058.1,3058.0,9.81033]
[1720547777431,1.80670685,3058.3,3058.2,6.53978]
[1720547777653,2.17089017,3058.3,3058.2,7.62678]
[1720547779518,0.81619167,3058.3,3058.2,7.62678]
[1720547779729,0.45200835,3058.3,3058.2,7.62678]
[1720547779956,0.81619167,3058.3,3058.2,7.62678]
[1720547780157,1.80502367,3058.3,3058.2,7.62678]
[1720547780458,2.16920699,3058.3,3058.2,7.62678]
[1720547781070,2.16898037,3058.3,3058.2,6.53978]
[1720547783176,0.81619167,3058.3,3058.2,6.53978]
[1720547783322,1.80411144,3058.3,3058.2,6.53978]
[1720547783665,2.16829476,3058.3,3058.1,3.26995]
[1720547783863,0.45200835,3058.1,3058.0,3.27009]
[1720547784280,0.81619167,3058.1,3058.0,3.27009]
[1720547784425,1.80374737,3058.1,3058.0,3.27009]
[1720547784626,2.16793322,3058.1,3058.0,3.27009]
[1720547785748,2.16793322,3058.1,3057.9,3.27021]
[1720547785968,0.36418332,3058.0,3057.9,3.27021]
[1720547786486,1.716352,3058.0,3057.9,3.27021]
[1720547787041,0.36418332,3058.0,3057.9,3.27021]
[1720547787266,2.05436347,3058.0,3057.9,3.27021]
[1720547787491,0.36418332,3058.0,3057.9,3.27021]
[1720547788082,2.05436347,3058.0,3057.9,3.27021]
[1720547788256,0.45200835,3057.9,3057.8,1.087]
[1720547788444,0.45200835,3057.9,3057.8,3.27032]
[1720547788648,0.81619167,3057.9,3057.8,3.27032]
[1720547788878,2.50637182,3057.9,3057.8,3.27032]
[1720547789077,2.16822835,3057.9,3057.8,3.27032]
[1720547789385,0.81619167,3057.9,3057.8,3.27032]
[1720547789586,2.1681967,3057.9,3057.8,3.27032]
[1720547789745,1.80401338,3057.9,3057.8,3.27032]
[1720547789951,2.1681967,3057.9,3057.8,3.27032]
[1720547790789,0.81619167,3057.9,3057.8,3.27032]
[1720547790962,2.50620658,3057.9,3057.8,3.27032]
[1720547791164,0.81619167,3057.9,3057.8,3.27032]
[1720547791563,2.50620658,3057.9,3057.8,3.27032]
[1720547792499,2.16807117,3057.9,3057.8,3.27032]
[1720547792951,0.81619167,3057.9,3057.8,3.27032]
[1720547793151,1.80398303,3057.9,3057.8,3.27032]
[1720547793349,2.16816635,3057.9,3057.8,6.54064]
[1720547793586,2.16831794,3057.9,3057.8,7.62764]
[1720547796901,1.46662392,3057.9,3057.8,10.12154]
[1720547797276,0.45200835,3057.9,3057.8,10.12154]
[1720547797605,1.46662392,3057.9,3057.8,10.12154]
[1720547798768,1.80413462,3058.1,3058.0,3.27011]
[1720547798974,0.45200835,3058.1,3058.0,10.89733]
[1720547799181,0.45200835,3058.1,3058.0,12.3703733]
[1720547800116,1.12837646,3058.1,3058.0,12.3703733]
[1720547800817,0.45200835,3058.1,3058.0,12.3703733]
[1720547801601,1.12830906,3058.1,3058.0,12.3703733]
[1720547801783,0.45200835,3058.1,3058.0,12.3703733]
[1720547802607,0.45200835,3058.1,3058.0,6.54022]
[1720547802909,0.45200835,3058.1,3058.0,7.62722]
[1720547803397,1.12823567,3058.1,3058.0,7.62722]
[1720547803922,0.45200835,3058.1,3058.0,7.62722]
[1720547804296,1.12824361,3058.1,3058.0,7.62722]
[1720547804500,0.45200835,3058.1,3058.0,7.62722]
[1720547807306,1.46634838,3058.1,3058.0,7.62722]
[1720547810086,1.46682446,3058.1,3058.0,7.62722]
[1720547813432,1.4670906,3058.1,3058.0,7.62722]
[1720547816209,0.81252837,3058.1,3058.0,7.62722]
[1720547817077,2.16662972,3058.1,3058.0,7.62722]
[1720547817478,0.81252837,3058.1,3058.0,7.62722]
[1720547818008,2.16662972,3058.1,3058.0,7.62722]
[1720547818189,1.71462137,3058.1,3058.0,7.62722]
[1720547818390,1.35410135,3058.1,3058.0,9.99372]
[1720547818597,1.35410135,3058.2,3058.1,6.54]
[1720547818789,1.71483426,3058.2,3058.1,7.627]
[1720547820283,0.36073291,3058.2,3058.1,7.627]
[1720547821590,0.36073291,3058.2,3058.1,12.223361]
[1720547821891,0.36073291,3058.2,3058.1,14.510861]
[1720547822092,8.47637504,3058.4,3058.3,8.87598]
[1720547822299,8.13754237,3058.4,3058.3,11.4189141]
[1720547822502,8.13755629,3058.4,3058.3,14.6887041]
[1720547822838,7.46,3058.4,3058.3,14.6887041]
[1720547824588,0.67766581,3058.5,3058.4,9.80904]
[1720547824910,0.67766581,3058.6,3058.5,9.80871]
[1720547825107,0.67766581,3058.6,3058.5,10.89571]
[1720547825311,0.67766581,3058.6,3058.5,12.83838045]
[1720547825486,0.67766581,3058.6,3058.5,15.28498045]
[1720547826014,20.33766581,3058.7,3058.6,9.80838]
[1720547826214,8.13766581,3058.7,3058.6,11.66380204]
[1720547826811,7.46,3058.7,3058.6,11.66380204]
[1720547827004,7.46,3058.7,3058.6,14.11040204]
[1720547827210,0.67766581,3058.9,3058.8,12.10715]
[1720547827409,0.67766581,3059.1,3059.0,9.80712]
[1720547827629,0.67766581,3059.2,3059.1,9.80679]
[1720547827813,0.67766581,3059.2,3059.1,10.89379]
[1720547828224,1.01649872,3059.3,3059.2,6.53764]
[1720547828423,0.6767631,3059.3,3059.2,3.26882]
[1720547828733,0.6767631,3059.3,3059.2,6.53764]
[1720547829135,1.80550943,3059.6,3059.5,6.537]
[1720547829439,2.16562021,3059.6,3059.5,7.624]
[1720547829828,2.16562021,3059.6,3059.5,9.9355]
[1720547829829,1.01474968,3059.6,3059.5,9.9355]
[1720547830211,1.80550943,3059.8,3059.6,6.5368]
[1720547830212,1.01474968,3059.7,3059.6,6.5368]
[1720547830942,1.46675803,3059.8,3059.7,6.53658]
[1720547831447,0.45200835,3059.8,3059.7,6.53658]
[1720547831658,0.45200835,3059.8,3059.7,7.62358]
[1720547831828,1.46675803,3059.8,3059.7,7.62358]
[1720547832145,0.45200835,3059.8,3059.7,7.62358]
[1720547832518,1.1278471,3059.8,3059.7,7.62358]
[1720547832933,1.35208739,3060.0,3059.7,7.62358]
[1720547832934,1.1278471,3060.0,3059.7,4.35529]
[1720547833260,0.45200835,3060.0,3059.9,1.087]
[1720547833821,0.45200835,3060.0,3059.9,7.62316]
[1720547835346,1.1278471,3060.0,3059.9,7.62316]
[1720547835765,1.1278471,3060.0,3059.9,6.53616]
[1720547835766,0.45200835,3060.0,3059.9,6.53616]
[1720547843794,0.45200835,3060.0,3059.9,3.26808]
[1720547845764,0.45200835,3060.0,3059.8,3.26818]
[1720547845963,0.45200835,3060.0,3059.8,3.26812]
[1720547846164,0.45200835,3060.0,3059.9,3.26808]
[1720547846400,0.45200835,3060.0,3059.8,3.26817]
[1720547847302,0.45200835,3059.8,3059.6,3.2684]
[1720547848182,0.45200835,3059.8,3059.7,3.26829]
[1720547848381,0.45200835,3059.6,3059.5,3.26847]
[1720547849700,0.45200835,3059.8,3059.7,3.26829]
[1720547849903,0.45200835,3059.8,3059.7,7.62358]
[1720547850410,3.0,3060.2,3059.7,7.62358]
[1720547850411,0.45200835,3060.0,3059.9,3.26808]
[1720547852015,0.45200835,3060.0,3059.9,4.35508]
[1720547852184,0.45200835,3060.0,3059.9,9.90746]
[1720547852513,0.45200835,3060.0,3059.9,10.898206]
[1720547855107,1.12740933,3060.3,3060.2,3.26776]
[1720547855317,1.58402757,3060.3,3060.2,3.26776]
[1720547857243,2.25942855,3060.3,3060.2,3.26776]
[1720547857544,2.25942855,3060.3,3060.2,6.53552]
[1720547857755,1.58402757,3060.3,3060.2,6.53552]
[1720547858337,2.25942855,3060.3,3060.2,6.53552]
[1720547859038,1.12740933,3060.3,3060.2,6.53552]
[1720547859236,2.25939335,3060.3,3060.2,6.53552]
[1720547859642,2.25939335,3060.3,3060.2,8.94862]
[1720547860849,0.67567757,3060.6,3060.2,7.011214]
[1720547861040,1.13187114,3060.5,3060.4,6.53508]
[1720547861334,1.58387949,3060.5,3060.4,6.53508]
[1720547862562,1.58384926,3060.5,3060.4,6.53508]
[1720547862873,0.67567757,3060.6,3060.5,6.53486]
[1720547863078,1.80751704,3060.6,3060.5,6.53486]
[1720547863642,2.25952539,3060.6,3060.5,6.53486]
[1720547864069,1.58384782,3060.6,3060.5,6.53486]
[1720547864274,2.59694929,3060.6,3060.5,6.53486]
[1720547865875,2.59696172,3060.6,3060.5,6.53486]
[1720547867849,4.71808039,3060.6,3060.5,6.53486]
[1720547869157,2.16008529,3060.6,3060.5,6.53486]
[1720547869362,4.71808826,3060.6,3060.5,6.53486]
[1720547870510,3.3672863,3060.6,3060.5,6.53486]
[1720547871466,5.06014101,3060.6,3060.5,6.53486]
[1720547871922,4.60813266,3060.6,3060.5,6.53486]
[1720547872208,2.91527795,3060.6,3060.5,7.62186]
[1720547872361,4.60813266,3060.6,3060.5,7.62186]
[1720547872565,4.60989412,3060.6,3060.5,7.62186]
[1720547873011,2.91525693,3060.6,3060.5,7.62186]
[1720547873376,4.60992824,3060.6,3060.5,7.62186]
[1720547875415,5.06193659,3060.6,3060.5,6.53486]
[1720547875616,4.60992824,3060.6,3060.5,3.26743]
[1720547875908,2.50395464,3060.6,3060.5,6.53486]
[1720547876075,5.06247416,3060.6,3060.5,6.53486]
[1720547877412,3.36730571,3060.6,3060.5,3.26743]
[1720547878109,3.36730571,3060.6,3060.5,6.53486]
[1720547879391,3.36732337,3060.6,3060.5,6.53486]
[1720547880206,3.36732337,3060.6,3060.5,3.26743]
[1720547881808,3.36733571,3060.6,3060.5,3.26743]
[1720547882331,3.3673538,3060.6,3060.5,3.26743]
[1720547885215,3.36735874,3060.6,3060.5,3.26743]
[1720547886626,3.36735874,3060.6,3060.4,3.26747]
[1720547886627,6.0858077,3060.6,3060.4,3.26747]
[1720547886784,3.59918493,3060.5,3060.4,3.26747]
[1720547887521,2.91535039,3060.5,3060.4,3.26747]
[1720547887680,2.91535039,3060.5,3060.4,6.53501]
[1720547888123,4.6111106,3060.5,3060.4,6.53501]
[1720547888522,4.61092449,3060.5,3060.4,6.53501]
[1720547888837,4.61099129,3060.5,3060.4,6.53501]
[1720547889435,2.91535895,3060.5,3060.4,6.53501]
[1720547890045,4.61050549,3060.5,3060.4,6.53501]
[1720547891830,0.35727498,3060.5,3060.4,3.26747]
[1720547892007,2.91538496,3060.5,3060.4,3.26747]
[1720547892207,0.35727498,3060.5,3060.4,3.26747]
[1720547892435,0.35727498,3060.5,3060.3,4.35465]
[1720547892436,2.17286956,3060.5,3060.3,3.26764]
[1720547892604,3.01021612,3060.4,3060.3,3.26764]
[1720547892803,3.3674911,3060.4,3060.3,3.26764]
[1720547893859,4.0512056,3060.4,3060.3,3.26764]
[1720547894631,6.085368,3060.4,3060.3,3.26764]
[1720547895227,3.52816493,3060.4,3060.3,3.26764]
[1720547895459,6.08644228,3060.4,3060.3,3.26764]
[1720547895758,7.91254063,3060.4,3060.3,3.26764]
[1720547898459,1.49299783,3060.4,3060.3,3.26764]
[1720547898681,1.58399334,3060.4,3060.3,3.26764]
[1720547898825,6.87172893,3060.4,3060.3,3.26764]
[1720547899027,7.91271841,3060.4,3060.3,3.26764]
[1720547899327,7.91271841,3060.4,3060.3,4.35464]
[1720547901554,6.08708346,3060.4,3060.3,6.78874]